Workbook

Sheet Budget
A1: Vous devez planifier la production mensuelle d'une usine de vibrateurs pour la période du 1er juin 2015 au 31 mai 2016.
A2: La capacité de production est de 2000 vibrateurs par mois.
A3: Les ventes sont décrites dans le tableau suivant.
A4: Les stocks sont nuls au 31 mai 2015.
A5: Faites la planification en utilisant des formules qui permettront de copier-coller les prévisions pour les mois futurs.
A6: Vous devez produire le plus tard possible, pour éviter la constitution de stocks inutiles, mais sans perdre de ventes.
B8: Mois | C8: Ventes
A9: 6 | B9: juin | C9: 1800
A10: 7 | B10: juillet | C10: 1300
A11: 8 | B11: août | C11: 1000
A12: 9 | B12: septembre | C12: 1000
A13: 10 | B13: octobre | C13: 1000
A14: 11 | B14: novembre | C14: 3500
A15: 12 | B15: décembre | C15: 4200
A16: 1 | B16: janvier | C16: 1500
A17: 2 | B17: février | C17: 2500
A18: 3 | B18: mars | C18: 1800
A19: 4 | B19: avril | C19: 1700
A20: 5 | B20: mai | C20: 2100
B21: Total | C21: =SUM(C9:C20) -> 23400
B23: Date | C23: 2015-06-01 | D23: =EDATE(C23,1) -> 2015-07-01 | E23: 2015-08-01 | F23: 2015-09-01 | G23: 2015-10-01 | H23: 2015-11-01 | I23: 2015-12-01 | J23: 2016-01-01 | K23: 2016-02-01 | L23: 2016-03-01 | M23: 2016-04-01 | N23: 2016-05-01
B24: Mois | C24: =MONTH(C23) -> 6 | D24: =MONTH(D23) -> 7 | E24: =MONTH(E23) -> 8 | F24: =MONTH(F23) -> 9 | G24: =MONTH(G23) -> 10 | H24: =MONTH(H23) -> 11 | I24: 12 | J24: =MONTH(J23) -> 1 | K24: 2 | L24: =MONTH(L23) -> 3 | M24: 4 | N24: =MONTH(N23) -> 5
B25: Ventes | C25: =VLOOKUP(C24,$A$9:$C$20,3,FALSE) -> 1800 | D25: =VLOOKUP(D24,$A$9:$C$20,3,FALSE) -> 1300 | E25: 1000 | F25: 1000 | G25: 1000 | H25: 3500 | I25: 4200 | J25: 1500 | K25: 2500 | L25: 1800 | M25: 1700 | N25: 2100
B26: Production de base (vente ou max) | C26: =MIN(C25,2000) -> 1800 | D26: =MIN(D25,2000) -> 1300 | E26: =MIN(E25,2000) -> 1000 | F26: =MIN(F25,2000) -> 1000 | G26: =MIN(G25,2000) -> 1000 | H26: =MIN(H25,2000) -> 2000 | I26: 2000 | J26: =MIN(J25,2000) -> 1500 | K26: 2000 | L26: =MIN(L25,2000) -> 1800 | M26: 1700 | N26: =MIN(N25,2000) -> 2000
B27: Surplus de capacité de production | C27: =MAX(2000-C26,0) -> 200 | D27: =MAX(2000-D26,0) -> 700 | E27: =MAX(2000-E26,0) -> 1000 | F27: =MAX(2000-F26,0) -> 1000 | G27: =MAX(2000-G26,0) -> 1000 | H27: =MAX(2000-H26,0) -> 0 | I27: =MAX(2000-I26,0) -> 0 | J27: =MAX(2000-J26,0) -> 500 | K27: =MAX(2000-K26,0) -> 0 | L27: =MAX(2000-L26,0) -> 200 | M27: =MAX(2000-M26,0) -> 300 | N27: =MAX(2000-N26,0) -> 0
B28: Déficit de capacité de production | C28: =MIN(C26-C25,0) -> 0 | D28: =MIN(D26-D25,0) -> 0 | E28: 0 | F28: 0 | G28: 0 | H28: -1500 | I28: -2200 | J28: 0 | K28: -500 | L28: 0 | M28: 0 | N28: -100
B29: Production pour stockage | C29: =MIN(C27,ABS(D30)) -> 0 | D29: 700 | E29: 1000 | F29: 1000 | G29: 1000 | H29: 0 | I29: 0 | J29: 500 | K29: 0 | L29: 0 | M29: 100 | N29: 0
B30: Déficit total à prévoir | C30: =D30+C28+C29 -> 0 | D30: =E30+D28+D29 -> 0 | E30: =F30+E28+E29 -> -700 | F30: -1700 | G30: -2700 | H30: -3700 | I30: -2200 | J30: 0 | K30: -500 | L30: 0 | M30: 0 | N30: -100
B31: Stock début | C31: 0 | D31: =C34 -> 0 | E31: 700 | F31: 1700 | G31: 2700 | H31: 3700 | I31: 2200 | J31: 0 | K31: 500 | L31: 0 | M31: 0 | N31: 100
B32: Production totale | C32: =C26+C29 -> 1800 | D32: =D26+D29 -> 2000 | E32: 2000 | F32: 2000 | G32: 2000 | H32: 2000 | I32: 2000 | J32: 2000 | K32: 2000 | L32: 1800 | M32: 1800 | N32: 2000
B33: Ventes | C33: =C25 -> 1800 | D33: =D25 -> 1300 | E33: 1000 | F33: 1000 | G33: 1000 | H33: 3500 | I33: 4200 | J33: 1500 | K33: 2500 | L33: 1800 | M33: 1700 | N33: 2100
B34: Stock fin | C34: =C31+C32-C33 -> 0 | D34: =D31+D32-D33 -> 700 | E34: =E31+E32-E33 -> 1700 | F34: =F31+F32-F33 -> 2700 | G34: =G31+G32-G33 -> 3700 | H34: =H31+H32-H33 -> 2200 | I34: 0 | J34: =J31+J32-J33 -> 500 | K34: 0 | L34: =L31+L32-L33 -> 0 | M34: 100 | N34: =N31+N32-N33 -> 0

Sheet Macro
A1: Faites une macro qui décale toutes les colonnes du budget vers la gauche, en lui donnant le raccourci CTRL-q.
A2: C'est-à-dire que lorsque le premier mois du budget est terminé dans la vie réelle, le deuxième mois devient le premier, le 3e devient le 2e, et ainsi de suite.
A3: Un nouveau 12e mois doit s'ajouter à la fin.
A4: Exécutez-la.
B6: CTRL-q
